fUST/lending_fUST_20240206
["ID","MTS","AMOUNT","RATE_DAILY","PERIOD"]
[313333739,1707165038146,-3571.9574024,0.0002214,2]
[313333741,1707165038156,-304.482172,0.00022676,2]
[313333742,1707165038169,-484.87398192,0.000229,2]
[313333746,1707165038199,-17.23713817,0.000229,2]
[313333747,1707165038215,-9963.35829512,0.00023,2]
[313333749,1707165038226,-1262.55072275,0.00023,2]
[313333751,1707165038237,-202.23213591,0.00023073,2]
[313333753,1707165038248,-1556.19431727,0.00023173,2]
[313333755,1707165038259,-6047.8221205,0.00023174,2]
[313333756,1707165038271,-4401.80077021,0.00023175,2]
[313333757,1707165038283,-3968.12281401,0.00023175,2]
[313333758,1707165038296,-3492.24028975,0.00024688,2]
[313333759,1707165038307,-500.0,0.0002493,2]
[313333760,1707165038319,-500.0,0.00024999,2]
[313333761,1707165038470,-500.0,0.00024999,2]
[313333762,1707165038490,-671.35,0.00024999,2]
[313333763,1707165038501,-3710.49,0.00024999,2]
[313333764,1707165038512,-512.28,0.00024999,2]
[313333765,1707165038524,-155.01395126,0.00025,2]
[313333766,1707165038536,-300.0,0.00025,2]
[313333767,1707165038547,-200.0,0.00025189,7]
[313333768,1707165038557,-7402.65909098,0.00025193,2]
[313333769,1707165038567,-500.0,0.00025194,2]
[313333770,1707165038577,-500.0,0.00025194,2]
[313333771,1707165038587,-2266.6,0.00025194,2]
[313333772,1707165038596,-842.88,0.00025194,2]
[313333773,1707165038605,-978.95259375,0.00025198,2]
[313333774,1707165038615,-178.0,0.00025263,3]
[313333775,1707165038627,-500.0,0.00025273,2]
[313333776,1707165038636,-500.0,0.00025273,2]
[313333777,1707165038646,-671.35,0.00025273,2]
[313333778,1707165038655,-3710.49,0.00025273,2]
[313333779,1707165038665,-512.28,0.00025273,2]
[313333780,1707165038675,-869.18055187,0.00025297,2]
[313333781,1707165038684,-442.6404248,0.00025468,2]
[313333782,1707165038697,-57.3595752,0.00025468,2]
[313333783,1707165038706,-500.0,0.00025468,2]
[313333784,1707165038715,-2266.6,0.00025468,2]
[313333785,1707165038725,-842.88,0.00025468,2]
[313333786,1707165038734,-201.41740772,0.00025546,2]
[313333787,1707165038743,-319.03164127,0.00025547,2]
[313333788,1707165038756,-180.96835873,0.00025547,2]
[313333789,1707165038769,-74.15889549,0.00025547,2]
[313333892,1707165041406,-1002.04205956,0.00025192,2]
[313333894,1707165041418,-3733.93614155,0.00025192,2]
[313333896,1707165041427,-425.84110451,0.00025547,2]
[313333898,1707165041437,-671.35,0.00025547,2]
[313333900,1707165041447,-3710.49,0.00025547,2]
[313333902,1707165041456,-512.28,0.00025547,2]
[313333904,1707165041466,-500.0,0.00025742,2]
[313333906,1707165041475,-500.0,0.00025742,2]
[313333908,1707165041484,-2266.6,0.00025742,2]
[313333909,1707165041493,-842.88,0.00025742,2]
[313333911,1707165041502,-6297.30004496,0.00025743,2]
[313333913,1707165041511,-538.06206685,0.0002575,2]
[313333915,1707165041520,-156.43658402,0.0002575,2]
[313333916,1707165041529,-265.82573854,0.00025751,2]
[313333918,1707165041539,-214.84566751,0.00025751,2]
[313333920,1707165041549,-155.80434411,0.00025751,2]
[313333921,1707165041561,-179.63461436,0.00025751,2]
[313333922,1707165041570,-500.0,0.00025821,2]
[313333924,1707165041580,-500.0,0.00025821,2]
[313333926,1707165041590,-671.35,0.00025821,2]
[313333928,1707165041599,-3710.49,0.00025821,2]
[313333930,1707165041608,-512.28,0.00025821,2]
[313333932,1707165041617,-202.23213584,0.00025858,2]
[313333934,1707165041626,-155.01240099,0.00025895,2]
[313333936,1707165041635,-500.0,0.00026016,2]
[313333938,1707165041644,-500.0,0.00026016,2]
[313333940,1707165041653,-2266.6,0.00026016,2]
[313333941,1707165041662,-842.88,0.00026016,2]
[313333943,1707165041672,-500.0,0.00026095,2]
[313333945,1707165041681,-500.0,0.00026095,2]
[313333947,1707165041690,-671.35,0.00026095,2]
[313333949,1707165041699,-3710.49,0.00026095,2]
[313333951,1707165041709,-512.28,0.00026095,2]
[313333953,1707165041718,-500.0,0.0002629,2]
[313333955,1707165041727,-500.0,0.0002629,2]
[313333957,1707165041738,-2266.6,0.0002629,2]
[313333959,1707165041748,-842.88,0.0002629,2]
[313333961,1707165041757,-155.01550155,0.00026298,2]
[313333962,1707165041767,-155.01550127,0.00026299,2]
[313333963,1707165041776,-500.0,0.00026369,2]
[313333964,1707165041785,-500.0,0.00026369,2]
[313333965,1707165041795,-671.35,0.00026369,2]
[313333966,1707165041804,-3710.49,0.00026369,2]
[313333967,1707165041813,-512.28,0.00026369,2]
[313333968,1707165041822,-500.0,0.00026564,2]
[313333969,1707165041831,-500.0,0.00026564,2]
[313333970,1707165041840,-1518.93825992,0.00026564,2]
[313333971,1707165041853,-747.66174008,0.00026564,2]
[313333972,1707165041862,-842.88,0.00026564,2]
[313333973,1707165041872,-6.25651054,0.00026573,2]
[313334039,1707165043174,-329.14121779,0.00026573,2]
[313334041,1707165043184,-500.0,0.00026643,2]
[313334043,1707165043193,-500.0,0.00026643,2]
[313334045,1707165043202,-671.35,0.00026643,2]
[313334046,1707165043214,-3710.49,0.00026643,2]
[313334048,1707165043223,-512.28,0.00026643,2]
[313334050,1707165043233,-340.02572766,0.00026799,2]
[313334053,1707165043243,-324.41326546,0.00026799,2]
[313334055,1707165043253,-268.05849428,0.00026799,2]
[313334057,1707165043262,-514.1507161,0.00026799,2]
[313334059,1707165043272,-191108.54851525,0.000268,2]
[313334061,1707165043282,-500.0,0.00026838,2]
[313334063,1707165043292,-500.0,0.00026838,2]
[313334065,1707165043302,-2266.6,0.00026838,2]
[313334067,1707165043311,-842.88,0.00026838,2]
[313334069,1707165043321,-500.0,0.00026917,2]
[313334071,1707165043330,-500.0,0.00026917,2]
[313334073,1707165043340,-671.35,0.00026917,2]
[313334076,1707165043356,-3710.49,0.00026917,2]
[313334077,1707165043365,-512.28,0.00026917,2]
[313334079,1707165043374,-182.2730545,0.00026999,2]
[313334081,1707165043383,-233.49653526,0.00027,2]
[313334083,1707165043393,-1382.16421912,0.00027,2]
[313334085,1707165043402,-51264.78922829,0.00027,2]
[313334087,1707165043411,-5000.0,0.00027058,2]
[313334089,1707165043420,-1565.044645,0.000271,2]
[313334091,1707165043429,-500.0,0.00027112,2]
[313334093,1707165043438,-500.0,0.00027112,2]
[313334095,1707165043447,-2266.6,0.00027112,2]
[313334097,1707165043456,-842.88,0.00027112,2]
[313334099,1707165043465,-500.0,0.00027191,2]
[313334101,1707165043474,-500.0,0.00027191,2]
[313334103,1707165043483,-671.35,0.00027191,2]
[313334104,1707165043492,-3710.49,0.00027191,2]
[313334106,1707165043503,-512.28,0.00027191,2]
[313334108,1707165043512,-500.0,0.00027386,2]
[313334110,1707165043521,-500.0,0.00027386,2]
[313334112,1707165043530,-2266.6,0.00027386,2]
[313334114,1707165043539,-842.88,0.00027386,2]
[313334116,1707165043548,-17170.66227747,0.00027394,2]
[313334118,1707165043556,-155.0,0.00027397,2]
[313334120,1707165043565,-500.0,0.00027397,15]
[313334122,1707165043574,-500.0,0.00027397,15]
[313334124,1707165043583,-500.0,0.00027397,2]
[313334126,1707165043592,-150.1,0.00027397,2]
[313334128,1707165043600,-500.0,0.00027465,2]
[313334129,1707165043609,-500.0,0.00027465,2]
[313334131,1707165043619,-671.35,0.00027465,2]
[313334133,1707165043628,-3710.49,0.00027465,2]
[313334135,1707165043639,-512.28,0.00027465,2]
[313334137,1707165043649,-600.0,0.000275,2]
[313334139,1707165043658,-500.0,0.00027534,2]
[313334141,1707165043667,-601.12749174,0.00027659,2]
[313334143,1707165043676,-500.0,0.00027659,2]
[313334145,1707165043685,-351.98425511,0.00027659,2]
[313334147,1707165043694,-500.0,0.00027659,2]
[313334149,1707165043703,-226.06454975,0.00027659,2]
[313334151,1707165043712,-500.0,0.00027659,2]
[313334153,1707165043721,-500.0,0.00027659,2]
[313334155,1707165043733,-500.0,0.00027659,2]
[313334157,1707165043742,-582.63352956,0.00027659,2]
[313334159,1707165043751,-500.0,0.00027659,2]
[313334161,1707165043760,-500.0,0.00027659,2]
[313334163,1707165043769,-500.0,0.00027659,2]
[313334165,1707165043778,-500.0,0.00027659,2]
[313334167,1707165043787,-500.0,0.00027659,2]
[313334169,1707165043798,-500.0,0.00027659,2]
[313334171,1707165043807,-500.0,0.00027659,2]
[313334172,1707165043816,-194.86154285,0.00027659,2]
[313334174,1707165043825,-500.0,0.00027659,2]
[313334176,1707165043834,-500.0,0.00027659,2]
[313334178,1707165043843,-500.0,0.00027659,2]
[313334180,1707165043852,-500.0,0.00027659,2]
[313334182,1707165043861,-490.13067583,0.00027659,2]
[313334184,1707165043869,-500.0,0.00027659,2]
[313334186,1707165043879,-373.99376501,0.00027659,2]
[313334188,1707165043888,-500.0,0.00027659,2]
[313334190,1707165043896,-500.0,0.00027659,2]
[313334191,1707165043905,-500.0,0.00027659,2]
[313334193,1707165043914,-500.0,0.0002766,2]
[313334195,1707165043923,-500.0,0.0002766,2]
[313334197,1707165043934,-2266.6,0.0002766,2]
[313334198,1707165043943,-842.88,0.0002766,2]
[313334200,1707165043952,-500.0,0.00027671,2]
[313334202,1707165043961,-280.0,0.00027708,15]
[313334204,1707165043970,-500.0,0.00027739,2]
[313334206,1707165043979,-293.17975023,0.00027739,2]
[313334208,1707165043988,-671.35,0.00027739,2]
[313334210,1707165043997,-3710.49,0.00027739,2]
[313334212,1707165044006,-512.28,0.00027739,2]
[313334214,1707165044015,-500.0,0.00027808,2]
[313334216,1707165044024,-151.0,0.000279,2]
[313334218,1707165044033,-502.11112009,0.000279,2]
[313334219,1707165044043,-8672.06333086,0.00027903,4]
[313334221,1707165044052,-500.0,0.00027934,2]
[313334223,1707165044061,-500.0,0.00027934,2]
[313334225,1707165044071,-2266.6,0.00027934,2]
[313334227,1707165044080,-842.88,0.00027934,2]
[313334228,1707165044088,-500.0,0.00027945,2]
[313334230,1707165044098,-375.96964863,0.00027997,2]
[313334232,1707165044106,-310.02480198,0.00027998,2]
[313334234,1707165044115,-232.26717277,0.00027998,2]
[313334236,1707165044125,-858.12328062,0.00027999,2]
[313334238,1707165044133,-1554.17366342,0.00027999,2]
[313334239,1707165044142,-39394.71997252,0.00027999,2]
[313334241,1707165044152,-150.0,0.00027999,2]
[313334243,1707165044161,-955.52777763,0.00028,3]
[313334245,1707165044176,-247365.40628789,0.00028,20]
[313334247,1707165044186,-26.56912708,0.00028,2]
[313334442,1707165046162,-473.43087292,0.00028,2]
[313334444,1707165046175,-8138.36385772,0.00028,2]
[313335099,1707165210702,150.0,0.00028239,120]
[313335165,1707166232186,-820.4174629,0.0002178,2]
[313335166,1707166232196,-2820.97195235,0.00021781,2]
[313335168,1707166232205,-208.64430105,0.00021781,2]
[313335170,1707166232215,-164.3749518,0.000219,2]
[313335172,1707166232224,-304.482172,0.0002214,2]
[313335174,1707166232233,-736.9369673,0.00022178,2]
[313335176,1707166232242,-226.04883396,0.00023102,2]
[313335178,1707166232251,-341.99340537,0.00023201,2]
[313335181,1707166232261,-11142.38700548,0.00023202,2]
[313335185,1707166232277,-915.83813876,0.00023202,2]
[313335187,1707166232288,-37941.77485576,0.00023202,2]
[313335188,1707166232297,-48631.70216148,0.00023202,2]
[313335244,1707166238372,-1339.12430165,0.00023202,2]
[313335276,1707166241602,-23039.39421005,0.00023202,2]
[313335378,1707166243342,-2636.33011252,0.00023202,2]
[313335565,1707166246228,-13633.85396363,0.00023202,2]
[313335566,1707166246237,-13750.22227163,0.00023202,2]
[313335567,1707166246246,-4.70376541,0.00023202,2]
[313335568,1707166246283,-1462.56315799,0.00023202,2]
[313335569,1707166246292,-500.0,0.00024657,2]
[313335570,1707166246301,-500.0,0.00024657,2]
[313335571,1707166246310,-500.0,0.00024657,2]
[313335572,1707166246319,-500.0,0.00024657,2]
[313335573,1707166246329,-2009.85,0.00024657,2]
[313335574,1707166246339,-500.0,0.00024657,2]
[313335575,1707166246348,-500.0,0.00024657,2]
[313335576,1707166246357,-500.0,0.00024657,2]
[313335577,1707166246366,-500.0,0.00024657,2]
[313335578,1707166246375,-326.98738141,0.00024686,2]
[313335579,1707166246384,-500.0,0.00024931,2]
[313335580,1707166246394,-500.0,0.00024931,2]
[313335581,1707166246403,-573.84,0.00024931,2]
[313335582,1707166246412,-2009.85,0.00024931,2]
[313335583,1707166246421,-500.0,0.00024931,2]
[313335584,1707166246431,-500.0,0.00024931,2]
[313335585,1707166246556,-500.0,0.00024931,2]
[313335586,1707166246565,-500.0,0.00024931,2]
[313335587,1707166246575,-277.91,0.00024961,3]
[313335588,1707166246585,-587.6947769,0.00024971,2]
[313335589,1707166246594,-7402.65909098,0.00025,2]
[313335590,1707166246603,-4735.97820111,0.00025,2]
[313335591,1707166246612,-354.5251787,0.00025204,2]
[313335592,1707166246621,-2818.08644369,0.00025204,2]
[313335593,1707166246630,-500.0,0.00025205,2]
[313335594,1707166246639,-500.0,0.00025205,2]
[313335595,1707166246648,-2009.85,0.00025205,2]
[313335596,1707166246657,-500.0,0.00025205,2]
[313335597,1707166246666,-500.0,0.00025205,2]
[313335598,1707166246676,-220.05728738,0.00025205,2]
[313335599,1707166246685,-500.0,0.00025205,2]
[313335600,1707166246694,-500.0,0.00025479,2]
[313335601,1707166246705,-500.0,0.00025479,2]
[313335602,1707166246714,-2009.85,0.00025479,2]
[313335603,1707166246723,-500.0,0.00025479,2]
[313335604,1707166246732,-500.0,0.00025479,2]
[313335605,1707166246741,-500.0,0.00025479,2]
[313335606,1707166246750,-200.0,0.00025521,7]
[313335607,1707166246759,-231.59,0.00025743,3]
[313335608,1707166246768,-500.0,0.00025753,2]
[313335609,1707166246777,-303.78231381,0.00025753,2]
[313335610,1707166246786,-2009.85,0.00025753,2]
[313335611,1707166246794,-500.0,0.00025753,2]
[313335612,1707166246804,-500.0,0.00025753,2]
[313335613,1707166246812,-500.0,0.00025753,2]
[313335614,1707166246822,-226.0488339,0.00025873,2]
[313335615,1707166246830,-923.54202358,0.000259,2]
[313335616,1707166246839,-500.0,0.00026027,2]
[313335617,1707166246849,-2009.85,0.00026027,2]
[313335618,1707166246859,-500.0,0.00026027,2]
[313335619,1707166246868,-500.0,0.00026027,2]
[313335620,1707166246878,-500.0,0.00026027,2]
[313335621,1707166246887,-500.0,0.00026301,2]
[313335622,1707166246896,-2009.85,0.00026301,2]
[313335623,1707166246905,-500.0,0.00026301,2]
[313335624,1707166246914,-500.0,0.00026301,2]
[313335625,1707166246923,-500.0,0.00026301,2]
[313335626,1707166246932,-464.53434554,0.00026366,2]
[313335627,1707166246942,-500.0,0.00026575,2]
[313335628,1707166246951,-2009.85,0.00026575,2]
[313335629,1707166246960,-500.0,0.00026575,2]
[313335630,1707166246969,-500.0,0.00026575,2]
[313335631,1707166246978,-500.0,0.00026575,2]
[313335632,1707166246987,-8672.06333086,0.00026827,4]
[313335633,1707166246996,-500.0,0.00026849,2]
[313335634,1707166247005,-2009.85,0.00026849,2]
[313335635,1707166247014,-500.0,0.00026849,2]
[313335636,1707166247023,-500.0,0.00026849,2]
[313335637,1707166247032,-500.0,0.00026849,2]
[313335638,1707166247041,-1382.16421912,0.00027,2]
[313335639,1707166247051,-5000.0,0.00027067,2]
[313335640,1707166247060,-500.0,0.00027123,2]
[313335641,1707166247069,-2009.85,0.00027123,2]
[313335642,1707166247078,-500.0,0.00027123,2]
[313335643,1707166247089,-500.0,0.00027123,2]
[313335644,1707166247097,-500.0,0.00027123,2]
[313335645,1707166247107,-155.0,0.00027397,2]
[313335646,1707166247116,-500.0,0.00027397,2]
[313335647,1707166247126,-500.0,0.00027397,2]
[313335648,1707166247135,-2009.85,0.00027397,2]
[313335649,1707166247144,-500.0,0.00027397,2]
[313335650,1707166247153,-500.0,0.00027397,2]
[313335651,1707166247162,-345.89884638,0.00027397,2]
[313335652,1707166247172,-153.8831869,0.00027397,2]
[313335653,1707166247181,-153.0,0.00027397,2]
[313335654,1707166247190,-150.1,0.00027489,2]
[313335655,1707166247199,-150.06101927,0.00027534,2]
[313335656,1707166247208,-1260.78538531,0.00027657,2]
[313335657,1707166247217,-804.40507443,0.00027657,2]
[313335658,1707166247226,-286.10571735,0.00027658,2]
[313335659,1707166247236,-500.0,0.00027671,2]
[313335660,1707166247245,-2009.85,0.00027671,2]
[313335661,1707166247255,-500.0,0.00027671,2]
[313335662,1707166247264,-500.0,0.00027671,2]
[313335663,1707166247273,-500.0,0.00027945,2]
[313335664,1707166247284,-2009.85,0.00027945,2]
[313335665,1707166247293,-500.0,0.00027945,2]
[313335666,1707166247302,-500.0,0.00027945,2]
[313335667,1707166247311,-153.0,0.00027945,2]
[313335668,1707166247321,-263.07207652,0.00027996,2]
[313335669,1707166247330,-235.56020887,0.00027996,2]
[313335670,1707166247341,-155.47874135,0.00027996,7]
[313335671,1707166247350,-534.69538579,0.00027997,2]
[313335672,1707166247359,-37034.1990655,0.00027998,2]
[313335673,1707166247368,-7975.5382397,0.00027998,2]
[313335674,1707166247377,-1856.25502519,0.00027998,2]
[313335675,1707166247387,-309.72125088,0.00027998,2]
[313335676,1707166247396,-1294.9059591,0.00027998,2]
[313335677,1707166247405,-155.14678343,0.00027998,2]
[313335678,1707166247414,-155.12462204,0.00027998,2]
[313335679,1707166247424,-1363.43088153,0.00027998,2]
[313335680,1707166247433,-689.23338559,0.00027998,2]
[313335681,1707166247443,-2690.63531931,0.00027998,2]
[313335682,1707166247452,-168.48090464,0.00027998,2]
[313335683,1707166247462,-155.01240099,0.00027999,2]
[313335684,1707166247471,-155.17453603,0.00027999,2]
[313335685,1707166247481,-1022.99444917,0.00027999,2]
[313335686,1707166247491,-1491.25060471,0.00027999,2]
[313335687,1707166247500,-2107.98461723,0.00027999,2]
[313335688,1707166247510,-155.01240099,0.00027999,2]
[313335689,1707166247520,-500.0,0.00027999,2]
[313335690,1707166247532,-420.78924422,0.00027999,2]
[313335691,1707166247541,-246.38897857,0.00027999,2]
[313335692,1707166247550,-500.0,0.00027999,2]
[313335693,1707166247560,-500.0,0.00027999,2]
[313335694,1707166247570,-158.24518483,0.00027999,2]
[313335695,1707166247579,-500.0,0.00027999,2]
[313335696,1707166247591,-500.0,0.00027999,2]
[313335697,1707166247600,-500.0,0.00027999,2]
[313335698,1707166247609,-607.84347069,0.00027999,2]
[313335699,1707166247619,-593.09147308,0.00027999,2]
[313335700,1707166247629,-500.0,0.00027999,2]
[313335701,1707166247638,-361.79563551,0.00027999,2]
[313335702,1707166247647,-500.0,0.00027999,2]
[313335703,1707166247657,-500.0,0.00027999,2]
[313335704,1707166247667,-500.0,0.00027999,2]
[313335705,1707166247676,-500.0,0.00027999,2]
[313335706,1707166247685,-500.0,0.00027999,2]
[313335707,1707166247694,-586.40308,0.00027999,2]
[313335708,1707166247704,-477.76388881,0.00028,3]
[313335709,1707166247713,-45256.73651238,0.00028,2]
[313335890,1707167440567,-8244.81308597,0.00021,2]
[313335891,1707167440576,-216.02083301,0.0002313,2]
[313335892,1707167440586,-26070.10118733,0.0002323,2]
[313335893,1707167440595,-2578.16667593,0.0002323,2]
[313335894,1707167440605,-366.81673085,0.0002323,2]
[313335895,1707167440615,-166.666666,0.00023407,2]
[313335897,1707167440624,-166.666666,0.0002447,2]
[313335898,1707167440634,-820.4174629,0.00024656,2]
[313335899,1707167440643,-500.0,0.00024657,2]
[313335900,1707167440653,-180.96835873,0.00024928,2]
[313335901,1707167440663,-500.0,0.00024928,2]
[313335902,1707167440673,-949.98,0.00024928,2]
[313335903,1707167440682,-195.13,0.00024929,2]
[313335904,1707167440692,-500.0,0.00024929,2]
[313335905,1707167440702,-500.0,0.00024929,2]
[313335906,1707167440712,-1291.03,0.0002493,2]
[313335907,1707167440722,-500.0,0.0002493,2]
[313335908,1707167440732,-500.0,0.0002493,2]
[313335909,1707167440742,-171.95852169,0.00024931,2]
[313335910,1707167440751,-250.2383944,0.00024971,2]
[313335911,1707167440761,-1475.07151832,0.00024971,2]
[313335912,1707167440770,-159.04853308,0.00024971,2]
[313335913,1707167440780,-1436.73230441,0.00025,2]
[313335914,1707167440793,-1000.0,0.00025,2]
[313335932,1707167441965,-2180.76460029,0.00025,2]
[313336009,1707167443691,-118.48129641,0.00025,2]
[313336010,1707167443700,-7402.65909098,0.00025,2]
[313336011,1707167443710,-500.0,0.00025202,2]
[313336012,1707167443719,-467.85961261,0.00025202,2]
[313336017,1707167447128,-500.0,0.00024928,2]
[313336018,1707167447138,-482.12038739,0.00025202,2]
[313336019,1707167447149,-494.00795502,0.00025204,2]
[313336020,1707167447220,-260.67799851,0.00025204,2]
[313336021,1707167447233,-536.34404647,0.00025204,2]
[313336022,1707167447244,-500.0,0.00025204,2]
[313336023,1707167447254,-309.37819602,0.00025297,2]
[313336100,1707168634860,-1818.961452,0.00021797,2]
[313336102,1707168634873,-1935.32113122,0.00021797,2]
[313336104,1707168634882,-523.37302151,0.00021797,2]
[313336106,1707168634892,-155.01705188,0.00021798,2]
[313336108,1707168634901,-1487.43821611,0.00021798,2]
[313336110,1707168634910,-155.29230049,0.00021801,2]
[313336111,1707168634919,-166.666666,0.00021918,2]
[313336113,1707168634928,-214.29724582,0.000228,2]
[313336115,1707168634937,-1296.15066518,0.00022896,2]
[313336117,1707168634946,-155.25397814,0.00022896,2]
[313336119,1707168634955,-1993.46407044,0.00022898,2]
[313336153,1707168638682,-680.53747908,0.00021796,2]
[313336155,1707168638694,-1315.72823115,0.00022898,2]
[313336266,1707168641840,-6581.73444692,0.00022898,2]
[313336269,1707168641851,-23570.82934697,0.00022898,2]
[313336270,1707168641861,-1056.53835162,0.000229,2]
[313336272,1707168641870,-6913.60834731,0.00023,2]
[313336274,1707168641882,-3049.74994781,0.00023,2]
[313336276,1707168641891,-1262.55072275,0.00023,2]
[313336278,1707168641900,-3865.93905914,0.00023239,2]
[313336280,1707168641911,-1418.37690357,0.00023239,2]
[313336282,1707168641921,-166.666666,0.00024489,2]
[313336283,1707168641929,-314.96,0.00024647,3]
[313336285,1707168641938,-600.62,0.00024647,3]
[313336287,1707168641947,-486.02163529,0.00024657,2]
[313336289,1707168641957,-500.0,0.00024657,2]
[313336290,1707168641966,-500.0,0.00024657,2]
[313336292,1707168641975,-478.24388125,0.00024657,2]
[313336470,1707168643723,-21.75611875,0.00024657,2]
[313336472,1707168643733,-500.0,0.00024657,2]
[313336474,1707168643743,-500.0,0.00024657,2]
[313336476,1707168643751,-500.0,0.00024657,2]
[313336478,1707168643760,-500.0,0.00024657,2]
[313336480,1707168643770,-500.0,0.00024657,2]
[313336482,1707168643779,-500.0,0.00024657,2]
[313336484,1707168643788,-500.0,0.00024657,2]
[313336486,1707168643797,-500.0,0.00024657,2]
[313336488,1707168643806,-500.0,0.00024657,2]
[313336490,1707168643815,-246.30388125,0.00024657,2]
[313336792,1707168646666,-253.69611875,0.00024657,2]
[313336794,1707168646678,-553.54,0.00024657,2]
[313336796,1707168646687,-500.0,0.00024657,2]
[313336797,1707168646696,-506.13669599,0.00024657,2]
[313336798,1707168646705,-500.0,0.00024657,2]
[313336799,1707168646714,-500.0,0.00024657,2]
[313336800,1707168646723,-504.69967975,0.00024657,2]
[313336801,1707168646732,-500.0,0.00024657,2]
[313336802,1707168646742,-1588.25,0.00024657,2]
[313336803,1707168646751,-504.45620681,0.00024657,2]
[313336804,1707168646759,-500.0,0.00024657,2]
[313336805,1707168646768,-500.0,0.00024657,2]
[313336806,1707168646777,-500.0,0.00024657,2]
[313336807,1707168646786,-504.22297276,0.00024657,2]
[313336808,1707168646795,-611.72,0.00024657,2]
[313336809,1707168646803,-500.0,0.00024657,2]
[313336810,1707168646813,-500.0,0.00024657,2]
[313336812,1707168646822,-494.82788856,0.00024657,2]
[313336815,1707168646833,-7.99830464,0.00024657,2]
[313336817,1707168646842,-500.0,0.00024657,2]
[313336819,1707168646851,-502.13781281,0.00024657,2]
[313336821,1707168646860,-500.0,0.00024657,2]
[313336823,1707168646869,-502.3,0.00024657,2]
[313336825,1707168646879,-527.80074373,0.00024657,2]
[313336826,1707168646888,-598.86,0.00024657,2]
[313336828,1707168646897,-500.0,0.00024657,2]
[313336830,1707168646906,-500.0,0.00024657,2]
[313336832,1707168646916,-500.0,0.00024657,2]
[313336835,1707168646926,-500.0,0.00024657,2]
[313336837,1707168646935,-500.0,0.00024657,2]
[313336838,1707168646945,-503.159011,0.00024657,2]
[313336840,1707168646954,-500.0,0.00024657,2]
[313336842,1707168646964,-500.0,0.00024657,2]
[313336844,1707168646974,-500.0,0.00024657,2]
[313336846,1707168646983,-500.0,0.00024657,2]
[313336849,1707168646993,-500.0,0.00024657,2]
[313336850,1707168647002,-500.0,0.00024657,2]
[313336852,1707168647012,-500.0,0.00024657,2]
[313336855,1707168647022,-500.0,0.00024657,2]
[313336856,1707168647031,-505.58848401,0.00024657,2]
[313336858,1707168647040,-500.0,0.00024657,2]
[313336860,1707168647050,-500.0,0.00024657,2]
[313336863,1707168647059,-1924.44359679,0.00024657,2]
[313336865,1707168647072,-589.96640321,0.00024657,2]
[313336867,1707168647082,-500.0,0.00024657,2]
[313336869,1707168647091,-503.89272444,0.00024657,2]
[313336871,1707168647099,-500.0,0.00024657,2]
[313336873,1707168647109,-506.62702337,0.00024657,2]
[313336875,1707168647118,-500.0,0.00024657,2]
[313336877,1707168647127,-214.84566751,0.00024928,2]
[313336879,1707168647137,-292.54,0.00024931,2]
[313336881,1707168647146,-155.01,0.00024931,2]
[313336883,1707168647155,-500.0,0.00024931,2]
[313336884,1707168647164,-500.0,0.00024931,2]
[313336887,1707168647174,-500.0,0.00024931,2]
[313336889,1707168647183,-1588.25,0.00024931,2]
[313336890,1707168647192,-500.0,0.00024931,2]
[313336892,1707168647201,-500.0,0.00024931,2]
[313336894,1707168647211,-502.3,0.00024931,2]
[313336897,1707168647221,-352.69,0.00024931,2]